bitfinex/quotes_SOLUSD_20241001
["timestamp","ask_amount","ask_price","bid_price","bid_amount"]
[1727768530376,15.0144,157.14,157.11,6.3649]
[1727768530672,6.3634,157.15,157.11,6.3649]
[1727768532164,6.3634,157.15,157.1,6.3653]
[1727768532363,1.36186794,157.14,157.1,6.3653]
[1727768533769,1.36186794,157.14,157.08,28.14397487]
[1727768533984,6.3646,157.12,157.08,28.14397487]
[1727768534481,6.3646,157.12,157.08,22.281]
[1727768534684,1.36186794,157.16,157.07,5.86297487]
[1727768534890,6.365,157.11,157.07,6.3665]
[1727768536390,7.72646794,157.12,157.07,6.3665]
[1727768537889,7.72646794,157.12,157.07,12.2310691]
[1727768538273,7.72646794,157.12,157.07,6.3665]
[1727768539597,6.365,157.11,157.07,6.3665]
[1727768542178,15.7749,157.13,157.03,6.3681]
[1727768542179,6.3664,157.08,157.03,6.3681]
[1727768542383,1.36186794,157.07,157.04,5.86685541]
[1727768542597,6.3664,157.08,157.03,12.23495541]
[1727768542889,6.3664,157.08,157.03,6.3681]
[1727768543397,6.3664,157.08,157.03,12.23534251]
[1727768543569,6.2324,157.14,157.02,5.86724251]
[1727768543570,23.776884,157.1,157.02,5.86724251]
[1727768543894,22.7553,157.09,156.99,15.9243]
[1727768544274,6.3677,157.05,157.0,6.3693]
[1727768545877,1.36186794,157.04,157.0,6.3693]
[1727768546072,6.3682,157.03,156.99,15.9243]
[1727768546592,1.36186794,157.02,156.99,15.9243]
[1727768546789,6.3686,157.02,156.96,6.6199]
[1727768546996,6.3686,157.02,156.95,15.9279]
[1727768547175,6.3686,157.02,156.95,22.299]
[1727768547567,6.3686,157.02,156.95,15.9279]
[1727768547873,7.73046794,157.02,157.01,229.66384898]
[1727768548670,31.50735194,157.02,157.01,229.66384898]
[1727768548871,30.145484,157.02,157.01,229.66384898]
[1727768550781,30.145484,157.02,157.01,159.32769796]
[1727768552880,31.50735194,157.02,157.01,159.32769796]
[1727768553575,31.50735194,157.02,157.01,105.80813224]
[1727768553778,31.50735194,157.02,157.01,22.43718122]
[1727768554098,31.50735194,157.02,157.01,13.48858122]
[1727768554295,31.50735194,157.02,157.01,9.18878122]
[1727768554605,30.145484,157.02,157.01,9.18878122]
[1727768556102,6.3712,156.96,156.9,22.9068]
[1727768556803,6.3705,156.98,156.91,1.2744938]
[1727768556985,23.776884,157.02,156.91,1.2744938]
[1727768557193,6.3703,156.98,156.93,15.9302]
[1727768558189,6.3703,156.98,156.94,6.3718]
[1727768558701,6.3699,156.99,156.94,6.3718]
[1727768562103,23.776884,157.02,156.93,15.9302]
[1727768562104,6.3706,156.97,156.93,15.9302]
[1727768562291,1.36186794,156.96,156.93,15.9302]
[1727768562487,1.36186794,156.96,156.9,16.5336]
[1727768562804,6.3715,156.95,156.91,36.373]
[1727768563010,7.73366794,156.94,156.9,38.8402]
[1727768563190,6.3718,156.94,156.9,38.8402]
[1727768564198,6.3718,156.94,156.9,15.9332]
[1727768564404,1.36186794,156.93,156.9,15.9332]
[1727768571808,7.73446794,156.93,156.88,6.3742]
[1727768572111,6.3734,156.9,156.85,6.3754]
[1727768572321,1.36186794,156.89,156.86,30.0]
[1727768572791,1.36186794,156.89,156.85,6.3754]
[1727768573212,6.3734,156.9,156.85,6.3754]
[1727768573825,1.36186794,156.89,156.85,6.3754]
[1727768574030,6.3734,156.9,156.85,6.3754]
[1727768574529,6.3734,156.9,156.86,6.375]
[1727768575815,6.373,156.91,156.86,6.375]
[1727768578622,6.373,156.92,156.86,22.3117]
[1727768578806,6.373,156.92,156.87,6.3746]
[1727768579822,6.3731,156.91,156.87,6.3746]
[1727768583513,16.615,156.97,156.9,6.3734]
[1727768583705,16.615,156.97,156.89,13.80246669]
[1727768584513,6.3714,156.95,156.9,6.3734]
[1727768585914,6.3714,156.95,156.9,7.64792429]
[1727768586518,1.36186794,156.94,156.9,6.3734]
[1727768586725,6.3714,156.95,156.9,6.3734]
[1727768587536,6.3714,156.95,156.9,7.64793845]
[1727768587710,6.3714,156.95,156.9,6.3734]
[1727768588117,6.3714,156.95,156.9,10.02234125]
[1727768588422,6.3714,156.95,156.9,6.3734]
[1727768588608,6.3714,156.95,156.9,10.02234125]
[1727768588823,6.3714,156.95,156.9,6.3734]
[1727768589027,1.36186794,156.94,156.9,10.02234125]
[1727768589335,6.3714,156.95,156.91,3.64894125]
[1727768589837,6.3714,156.95,156.9,6.3734]
[1727768590054,6.3714,156.95,156.91,3.65981741]
[1727768590543,6.3714,156.95,156.92,3.66169944]
[1727768590730,6.3714,156.95,156.91,3.66169944]
[1727768590929,6.3714,156.95,156.9,6.3734]
[1727768590930,6.3714,156.95,156.92,3.66169944]
[1727768591250,1.36186794,156.94,156.9,6.3734]
[1727768591431,6.3714,156.95,156.91,3.66369481]
[1727768591747,6.3714,156.95,156.92,3.66369481]
[1727768591949,6.3714,156.95,156.9,6.3734]
[1727768592142,6.3714,156.95,156.91,3.66369481]
[1727768592450,6.3714,156.95,156.92,3.66369481]
[1727768592949,6.3714,156.95,156.9,6.3734]
[1727768593521,6.3714,156.95,156.91,3.66605573]
[1727768593725,6.3714,156.95,156.92,3.66605573]
[1727768593925,6.3714,156.95,156.9,6.3734]
[1727768594143,6.3714,156.95,156.91,3.66731567]
[1727768594350,6.3714,156.95,156.92,3.66731567]
[1727768594552,6.3714,156.95,156.9,6.3734]
[1727768594747,6.3714,156.95,156.91,3.66805575]
[1727768594945,6.3714,156.95,156.92,3.66805575]
[1727768595141,6.3714,156.95,156.9,6.3734]
[1727768595334,6.3714,156.95,156.91,3.66842691]
[1727768595640,6.3714,156.95,156.92,3.66842691]
[1727768595843,6.3714,156.95,156.9,6.3734]
[1727768596433,6.3714,156.95,156.91,3.66841951]
[1727768597156,6.3714,156.95,156.92,3.66841951]
[1727768597353,6.3714,156.95,156.93,3.66841951]
[1727768597555,6.3714,156.95,156.9,7.64793675]
[1727768597747,6.3714,156.95,156.91,3.66922496]
[1727768597931,6.3714,156.95,156.92,3.66922496]
[1727768598133,6.3714,156.95,156.93,3.66920892]
[1727768598362,6.3714,156.95,156.9,7.64793675]
[1727768598657,6.3714,156.95,156.91,3.66964439]
[1727768598832,6.3714,156.95,156.92,3.66964439]
[1727768599033,6.3714,156.95,156.9,7.64793675]
[1727768599232,6.3714,156.95,156.9,6.3734]
[1727768599435,6.3714,156.95,156.91,3.67006143]
[1727768599659,6.3714,156.95,156.91,7.34012286]
[1727768600257,22.4272,156.92,156.91,7.34012286]
[1727768600641,23.78906794,156.92,156.91,7.34012286]
[1727768601340,23.78906794,156.92,156.91,3.67006143]
[1727768601655,6.3733,156.91,156.86,6.375]
[1727768602340,1.36186794,156.9,156.86,6.375]
[1727768602740,22.4273,156.92,156.88,6.3741]
[1727768603062,22.4273,156.92,156.87,6.3746]
[1727768603063,6.3732,156.91,156.87,6.3746]
[1727768603357,1.36186794,156.9,156.87,6.3746]
[1727768604651,6.3732,156.91,156.87,6.3746]
[1727768605577,7.73506794,156.91,156.87,6.3746]
[1727768608158,16.0546,156.92,156.86,1.27481673]
[1727768608359,22.4272,156.92,156.88,6.3742]
[1727768608559,6.3726,156.92,156.88,7.64891524]
[1727768608873,6.3722,156.93,156.89,6.3737]
[1727768610976,6.3719,156.94,156.9,7.64791464]
[1727768611182,15.6099,156.96,156.91,15.9318]
[1727768611358,6.3713,156.96,156.91,34.83256339]
[1727768611563,1.36186794,156.95,156.91,22.3047]
[1727768611761,1.36186794,156.99,156.91,22.3047]
[1727768612070,6.3711,156.96,156.91,22.3047]
[1727768613885,6.3711,156.96,156.91,23.5791733]
[1727768614261,6.3711,156.96,156.91,22.3047]
[1727768615067,6.3711,156.96,156.91,23.57917509]
[1727768615858,6.3711,156.96,156.91,22.3047]
[1727768616778,1.36186794,156.95,156.91,22.3047]
[1727768617679,6.3711,156.96,156.91,22.3047]
[1727768617884,6.3711,156.96,156.91,23.57909941]
[1727768618181,6.3711,156.96,156.91,22.3047]
[1727768619378,1.36186794,156.95,156.91,22.3047]
[1727768619680,7.73336794,156.95,156.91,22.3047]
[1727768619867,6.3715,156.95,156.91,22.3047]
[1727768625994,15.8598,157.0,156.9,12.52786339]
[1727768626281,32.2704,157.04,156.95,6.3712]
[1727768626687,6.3698,156.99,156.94,6.3717]
[1727768626870,7.73226794,156.98,156.93,22.3018]
[1727768627075,1.36186794,156.97,156.93,22.3018]
[1727768627275,6.3704,156.98,156.93,22.3018]
[1727768640296,15.922,157.02,156.93,22.3018]
[1727768640480,6.3707,156.97,156.93,22.3018]
[1727768640893,6.3705,156.98,156.93,22.3018]
[1727768644686,1.36186794,156.97,156.93,22.3018]
[1727768645980,1.36186794,156.97,156.93,15.9297]
[1727768646298,23.776884,157.01,156.91,6.3729]
[1727768646299,6.3714,156.95,156.91,6.3729]
[1727768647187,6.3711,156.96,156.91,6.3729]
[1727768647501,1.36186794,156.95,156.91,6.3729]
[1727768647683,6.3714,156.95,156.91,6.3729]
[1727768650289,6.3714,156.95,156.91,7.64735973]
[1727768650491,6.3706,156.97,156.93,6.3721]
[1727768651806,15.9211,157.03,156.96,6.3708]
[1727768651991,15.9211,157.03,156.96,18.89866339]
[1727768652388,1.36186794,157.02,156.94,44.33586339]
[1727768652587,6.3694,157.0,156.95,6.3713]
[1727768652910,7.73166794,156.99,156.95,6.3713]
[1727768653107,1.36186794,156.98,156.95,6.3713]
[1727768654807,6.3698,156.99,156.95,6.3713]
[1727768655710,1.36186794,156.98,156.95,6.3713]
[1727768655885,6.3698,156.99,156.95,6.3713]
[1727768656508,1.36186794,156.98,156.95,6.3713]
[1727768656811,6.3698,156.99,156.95,6.3713]
[1727768658387,1.36186794,156.98,156.95,6.3713]
[1727768658693,6.3698,156.99,156.95,6.3713]
[1727768663506,6.3695,157.0,156.96,6.3709]
[1727768663700,6.3695,157.0,156.95,6.3713]
[1727768664414,6.3695,157.0,156.96,6.3708]
[1727768664808,6.3698,156.99,156.95,6.3713]
[1727768666006,15.9211,157.03,156.95,6.3713]
[1727768666212,31.836,157.06,156.96,34.71666339]
[1727768666213,15.9177,157.06,156.96,34.71666339]
[1727768666392,6.3687,157.02,156.97,10.00208158]
[1727768666597,1.36186794,157.01,156.97,6.3705]
[1727768667189,7.73096794,157.01,156.96,28.5597]
[1727768667397,6.3691,157.01,156.96,28.5597]
[1727768668609,1.36186794,157.0,156.96,6.2619]
[1727768668915,6.3705,156.98,156.94,15.8792]
[1727768669108,6.3705,156.98,156.92,6.1504]
[1727768669109,6.371,156.96,156.92,6.1504]
[1727768669301,1.36186794,156.95,156.93,3.6323444]
[1727768669503,1.36186794,156.95,156.92,6.1504]
[1727768669710,1.36186794,156.95,156.93,3.63263975]
[1727768670011,1.36186794,156.95,156.92,6.1504]
[1727768670218,6.371,156.96,156.93,3.63264699]
[1727768670395,6.371,156.96,156.92,6.1504]
[1727768670591,6.371,156.96,156.93,3.63294875]
[1727768670813,6.371,156.96,156.92,6.1504]
[1727768671019,6.371,156.96,156.93,3.63294814]
[1727768671205,6.371,156.96,156.92,6.1504]
[1727768671391,7.73336794,156.95,156.93,3.63326347]
[1727768671597,1.36186794,156.94,156.9,37.9736]
[1727768671916,1.36186794,156.94,156.91,3.63334355]
[1727768672107,1.36186794,156.94,156.92,3.63334355]
[1727768672294,1.36186794,156.94,156.9,37.9736]
[1727768672495,1.36186794,156.94,156.91,3.63312988]
[1727768672706,6.3715,156.95,156.92,3.63312988]
[1727768672903,6.3715,156.95,156.91,6.373]
[1727768673114,6.3715,156.95,156.92,3.63313522]
[1727768673318,6.3715,156.95,156.91,6.373]
[1727768673530,6.3715,156.95,156.9,32.87469766]
[1727768673531,1.36186794,156.99,156.92,3.63288514]
[1727768673818,1.36186794,156.99,156.9,31.6002]
[1727768673819,6.3719,156.94,156.9,15.667]
[1727768674017,1.36186794,156.93,156.91,3.63314938]
[1727768674195,1.36186794,156.93,156.9,15.667]
[1727768674392,1.36186794,156.93,156.91,3.63260225]
[1727768674615,1.36186794,156.93,156.9,15.667]
[1727768674818,1.36186794,156.93,156.91,3.63263364]
[1727768675141,39.703284,156.98,156.9,15.667]
[1727768675142,15.9264,156.98,156.9,15.667]
[1727768675424,6.3715,156.95,156.91,10.00543236]
[1727768675617,6.3715,156.95,156.91,6.373]
[1727768675916,6.3709,156.97,156.93,6.3722]
[1727768676516,1.36186794,156.96,156.93,6.3722]
[1727768677007,1.36186794,156.96,156.92,6.3726]
[1727768677513,6.3711,156.96,156.92,6.3726]
[1727768677711,1.36186794,156.95,156.92,6.3726]
[1727768679035,6.3711,156.96,156.92,6.3726]
[1727768681718,6.3703,156.98,156.93,7.64650918]
[1727768682436,6.3703,156.98,156.93,6.3721]
[1727768683823,6.3706,156.97,156.93,6.3721]
[1727768685940,15.9228,157.01,156.93,6.3721]
[1727768686240,6.3702,156.98,156.93,6.3721]
[1727768688134,6.3702,156.98,156.94,6.3717]
[1727768688723,23.776884,157.02,156.93,3.63028792]
[1727768688920,23.776884,157.02,156.92,15.9311]
[1727768688921,6.3702,156.98,156.94,6.3718]
[1727768693746,20.79741265,157.03,156.92,34.79696339]
[1727768693948,6.3699,156.99,156.95,6.3713]
[1727768698539,6.3689,157.02,156.97,6.3702]
[1727768700447,31.595,157.07,156.96,28.45456339]
[1727768700641,1.36186794,157.06,156.97,6.0371]
[1727768700950,6.3687,157.02,156.98,6.3701]
[1727768701455,6.3687,157.02,156.97,12.4076]
[1727768703162,1.36186794,157.01,156.97,6.0371]
[1727768703351,6.3694,157.0,156.97,6.0371]
[1727768703736,23.776884,157.03,156.95,21.7764]
[1727768703937,1.36186794,157.04,156.93,6.0513]
[1727768703938,23.776884,157.01,156.93,6.0513]
[1727768704140,1.36186794,157.02,156.91,22.7142]
[1727768704141,6.3714,156.95,156.91,22.7142]
[1727768704334,23.776884,156.99,156.92,30.0]
[1727768704335,1.36186794,156.94,156.92,30.0]
[1727768704654,6.3718,156.94,156.91,16.3412]
[1727768704841,6.3718,156.94,156.92,3.62988864]
[1727768708752,15.9255,156.99,156.92,3.62988864]
[1727768708958,23.776884,156.98,156.92,3.62988864]
[1727768709145,6.3715,156.95,156.92,3.62988864]
[1727768710048,6.371,156.96,156.92,3.62988864]
[1727768710255,31.3562,157.02,156.93,1.27441349]
[1727768710450,31.3562,157.02,156.93,30.30257688]
[1727768710753,6.3699,156.99,156.94,12.52786339]
[1727768710939,6.3699,156.99,156.93,46.23237688]
[1727768711345,6.3699,156.99,156.94,1.27417244]
[1727768712260,6.3699,156.99,156.94,7.64597244]
[1727768712435,6.3699,156.99,156.94,6.3718]
[1727768719475,6.3715,156.95,156.9,6.3731]
[1727768719646,6.3715,156.95,156.91,33.63015819]
[1727768719959,1.36186794,156.94,156.91,30.0]
[1727768720182,1.36186794,156.94,156.9,6.3731]
[1727768720466,7.73376794,156.94,156.9,6.3731]
[1727768720648,6.3719,156.94,156.9,6.3731]
[1727768720853,6.3719,156.94,156.91,3.63024428]
[1727768721351,6.3719,156.94,156.9,6.3731]
[1727768721855,6.3719,156.94,156.91,3.63027313]
[1727768722163,6.3719,156.94,156.89,44.3117]
[1727768722460,6.373,156.91,156.9,3.63033454]
[1727768722673,6.373,156.91,156.86,22.3122]
[1727768722846,1.36186794,156.9,156.87,33.63077772]
[1727768723048,1.36186794,156.9,156.88,3.63077772]
[1727768723252,6.373,156.91,156.87,30.0]
[1727768723566,6.373,156.91,156.88,3.62984568]
[1727768723862,15.9283,156.96,156.85,22.7841]
[1727768723863,6.374,156.89,156.85,22.7841]
[1727768724070,6.3734,156.9,156.85,30.43428851]
[1727768724572,6.3734,156.9,156.86,3.63009858]
[1727768724958,6.3734,156.9,156.85,30.43428851]
[1727768725158,6.3734,156.9,156.86,3.62884574]
[1727768725360,6.3731,156.91,156.86,6.375]
[1727768726452,1.36186794,156.9,156.85,22.7841]
[1727768726653,23.776884,156.92,156.85,16.5726]
[1727768726874,1.36186794,156.91,156.85,16.5726]
[1727768727758,1.36186794,156.9,156.85,16.5726]
[1727768728161,6.3739,156.89,156.85,16.5726]
[1727768728360,1.36186794,156.88,156.85,16.5726]
[1727768729356,6.3739,156.89,156.85,16.5726]
[1727768729971,1.36186794,156.88,156.85,16.5726]
[1727768730184,6.3743,156.88,156.85,16.5726]
[1727768731654,6.3743,156.88,156.84,6.3758]
[1727768732176,6.3743,156.88,156.83,22.3169]
[1727768735060,6.3747,156.87,156.83,22.3169]
[1727768735257,6.3743,156.88,156.83,22.3169]
[1727768736080,6.3743,156.88,156.84,6.3758]
[1727768736262,6.3743,156.88,156.83,22.3169]
[1727768747191,6.3747,156.87,156.83,22.3169]
[1727768751698,6.3744,156.88,156.84,1.27505554]
[1727768752198,6.3739,156.89,156.84,7.65085554]
[1727768752488,6.3727,156.92,156.88,6.3742]
[1727768752691,6.343,156.97,156.88,1.27466593]
[1727768752901,47.2663,156.98,156.88,1.27466593]
[1727768754098,6.3723,156.93,156.89,6.3738]
[1727768754272,6.3723,156.93,156.88,7.64886593]
[1727768755197,6.3728,156.92,156.88,7.64886593]
[1727768756975,1.36186794,156.91,156.87,21.9769]
[1727768757181,6.3735,156.9,156.87,21.9769]
[1727768757388,15.9301,156.94,156.87,21.9769]
[1727768757713,6.3742,156.88,156.87,15.5884]
[1727768758077,6.3742,156.88,156.84,15.9392]
[1727768758695,6.3742,156.88,156.84,17.21419946]
[1727768759387,6.3742,156.88,156.84,15.9392]
[1727768760582,6.3742,156.88,156.84,17.21419932]
[1727768760895,6.3742,156.88,156.84,23.59009932]
[1727768761707,6.3742,156.88,156.84,36.11796271]
[1727768762074,6.3742,156.88,156.84,34.84296339]
[1727768762274,6.3742,156.88,156.84,22.3151]
[1727768762891,6.3742,156.88,156.84,15.9392]
[1727768763094,16.6219,156.92,156.83,23.041]
[1727768763411,6.3751,156.86,156.83,23.041]
[1727768763894,6.3751,156.86,156.83,16.4081]
[1727768766278,6.3751,156.86,156.82,6.3764]
[1727768766680,6.3751,156.86,156.82,10.00528105]
[1727768767379,6.3751,156.86,156.82,6.3764]
[1727768772299,6.3739,156.89,156.84,18.90366339]
[1727768772496,6.3739,156.89,156.85,6.3754]
[1727768773288,6.3739,156.89,156.84,20.17865544]
[1727768775607,32.5544,156.92,156.85,6.3754]
[1727768775608,6.3735,156.9,156.85,6.3754]
[1727768775912,6.3735,156.9,156.85,18.90326339]
[1727768776085,15.9291,156.95,156.87,12.52786339]
[1727768776287,6.3722,156.93,156.88,7.64891384]
[1727768776483,22.7367,156.96,156.88,20.17677723]
[1727768776710,6.3727,156.92,156.88,6.3742]
[1727768776914,6.3735,156.9,156.85,34.84156339]
[1727768778107,6.3735,156.9,156.85,28.46616339]
[1727768778286,6.3735,156.9,156.86,6.375]
[1727768778490,6.3735,156.9,156.86,7.6498293]
[1727768778690,6.3735,156.9,156.86,20.17769269]
[1727768779304,6.3731,156.91,156.86,20.17769269]
[1727768789813,6.3731,156.91,156.86,13.80269269]
[1727768790118,6.3727,156.92,156.87,6.3745]
[1727768791820,6.3731,156.91,156.87,6.3745]
[1727768794013,7.73536794,156.9,156.86,6.375]
[1727768794193,6.3735,156.9,156.86,6.375]
[1727768794820,6.3735,156.9,156.85,28.46616339]
[1727768795124,6.3735,156.9,156.85,34.84146339]
[1727768795311,7.73576794,156.89,156.85,22.3136]
[1727768795500,6.3739,156.89,156.85,22.3136]
[1727768798707,6.3739,156.89,156.85,15.9383]
[1727768799812,6.3739,156.89,156.85,17.21324416]
[1727768800439,6.3739,156.89,156.85,15.9383]
[1727768801023,6.3739,156.89,156.85,23.58865484]
[1727768803924,6.3739,156.89,156.85,22.3137]
[1727768804122,15.9301,156.94,156.85,15.9383]
[1727768804335,6.3743,156.88,156.84,28.1619]
[1727768805406,6.3743,156.88,156.84,21.7861]
[1727768806606,1.36186794,156.87,156.8,22.9996]
[1727768806806,6.3751,156.86,156.82,6.3766]
[1727768807020,1.36186794,156.85,156.82,6.3766]
[1727768807925,6.3755,156.85,156.81,6.377]
[1727768809223,6.3755,156.85,156.8,29.377]
[1727768809727,7.73786794,156.84,156.8,29.377]
[1727768809919,6.376,156.84,156.8,29.377]
[1727768810308,6.376,156.84,156.8,22.9996]
[1727768810509,6.3768,156.82,156.76,38.9281]
[1727768810724,6.3768,156.82,156.78,6.3783]
[1727768810933,6.3764,156.83,156.78,6.3783]
[1727768814416,6.3764,156.83,156.77,12.52786339]
[1727768814615,6.3755,156.85,156.81,6.377]
[1727768814819,6.3755,156.85,156.81,7.65228378]
[1727768816541,6.3755,156.85,156.81,1.27528378]
[1727768818416,6.3767,156.82,156.78,22.323]
[1727768820118,1.36186794,156.84,156.78,22.323]
[1727768820312,6.3764,156.83,156.78,22.323]
[1727768820516,7.73826794,156.83,156.78,22.323]
[1727768820737,6.3764,156.83,156.78,22.323]
[1727768822523,6.3764,156.83,156.78,15.9451]
[1727768822727,6.376,156.84,156.79,6.3777]
[1727768822930,6.376,156.84,156.79,7.65309481]
[1727768823240,6.376,156.84,156.8,6.3774]
[1727768823439,15.0676,156.86,156.82,6.3767]
[1727768823618,6.3743,156.88,156.84,6.3758]
[1727768824127,21.99,156.9,156.85,6.3754]
[1727768824324,21.99,156.9,156.85,7.6503761]
[1727768825428,21.99,156.9,156.85,20.17823949]
[1727768826444,21.99,156.9,156.85,18.90326339]
[1727768826947,21.99,156.9,156.85,6.3754]
[1727768827749,21.99,156.9,156.85,7.65035923]
[1727768832255,21.99,156.9,156.85,6.3754]
[1727768833935,23.776884,156.93,156.85,13.80281991]
[1727768834141,6.3728,156.92,156.87,6.3744]
[1727768834357,21.4285,156.94,156.88,6.3742]
[1727768834559,15.0563,156.94,156.91,6.373]
[1727768834866,15.0563,156.94,156.89,1.27473648]
[1727768834867,15.0563,156.94,156.9,6.3734]
[1727768835741,21.4282,156.94,156.9,6.3734]
[1727768836557,1.36186794,156.93,156.89,6.3738]
[1727768836749,7.73406794,156.93,156.89,6.3738]
[1727768837758,1.36186794,156.93,156.85,15.9384]
[1727768837957,6.3736,156.9,156.86,6.3747]
[1727768838163,1.36186794,156.89,156.85,22.3135]
[1727768838842,6.3731,156.91,156.86,6.3748]
[1727768839046,6.3731,156.91,156.87,6.3746]
[1727768839563,0.32676865,156.9,156.82,15.9413]
[1727768839751,0.32676865,156.89,156.82,15.9413]
[1727768839950,0.32676865,156.89,156.82,19.56671962]
[1727768840158,0.32676865,156.89,156.82,15.9413]
[1727768841065,6.70106865,156.88,156.83,6.3762]
[1727768841252,6.3743,156.88,156.83,6.3762]
[1727768842553,6.3743,156.88,156.84,1.27503854]
[1727768844387,6.3743,156.88,156.83,6.3762]
[1727768844677,6.3743,156.88,156.83,7.65123812]
[1727768846060,6.3743,156.88,156.84,6.3759]
[1727768846262,6.374,156.89,156.84,6.3759]
[1727768846662,6.3744,156.88,156.83,7.65133812]
[1727768846870,6.3744,156.88,156.83,6.3763]
[1727768847378,6.3744,156.88,156.84,1.27503706]
[1727768851690,6.3744,156.88,156.83,6.3763]
[1727768851897,6.3744,156.88,156.84,1.27503508]
[1727768853587,6.3744,156.88,156.83,6.3763]
[1727768853983,6.3744,156.88,156.84,1.27503456]
[1727768856488,6.3744,156.88,156.84,7.65083456]
[1727768856683,6.3744,156.88,156.84,6.3758]
[1727768861082,6.3744,156.88,156.83,7.65108292]
[1727768867595,6.3744,156.88,156.83,6.3761]
[1727768868700,6.3748,156.87,156.83,6.3761]
[1727768869085,6.3748,156.87,156.84,1.27502616]
[1727768870897,0.32676865,156.86,156.8,6.3775]
[1727768871101,6.376,156.84,156.81,3.63442869]
[1727768871287,6.376,156.84,156.8,12.19281394]
[1727768871487,6.376,156.84,156.81,3.63414019]
[1727768872089,6.376,156.84,156.8,12.19281394]
[1727768872295,6.376,156.84,156.81,3.63417795]
[1727768872494,6.376,156.84,156.8,6.3775]
[1727768872690,6.376,156.84,156.81,4.90900952]
[1727768872901,6.376,156.84,156.81,1.27528179]
[1727768876313,6.376,156.84,156.8,6.3775]
[1727768876487,6.376,156.84,156.81,3.63238293]
[1727768876688,6.376,156.84,156.8,6.3775]
[1727768876887,6.376,156.84,156.81,3.63238293]
[1727768877093,6.376,156.84,156.81,1.27526175]
[1727768878511,6.3755,156.85,156.81,1.27526175]
[1727768879419,6.3751,156.86,156.81,7.65196175]
[1727768879719,6.3751,156.86,156.81,13.80312514]
[1727768880020,6.3746,156.88,156.84,6.3758]
[1727768880229,15.5929,156.91,156.85,1.27495533]
[1727768880230,20.0,156.9,156.85,1.27495533]
[1727768880521,6.374,156.89,156.85,1.27495533]
[1727768880725,21.966,156.91,156.87,6.3745]
[1727768880936,21.966,156.91,156.87,7.64951988]
[1727768881233,15.5929,156.91,156.87,7.64951988]
[1727768881539,15.5929,156.91,156.85,15.9382]
[1727768881540,15.5929,156.91,156.85,34.84116339]
[1727768881826,6.3735,156.9,156.85,34.84116339]
[1727768882526,15.91966865,156.91,156.85,15.9382]
[1727768882821,6.374,156.89,156.85,15.9382]
[1727768883230,6.374,156.89,156.85,22.3136]
[1727768883604,15.5929,156.91,156.85,22.3136]
[1727768883605,6.3735,156.9,156.85,22.3136]
[1727768884026,6.3735,156.9,156.85,34.84146339]
[1727768884321,6.3735,156.9,156.86,7.64982059]
[1727768886023,6.3735,156.9,156.86,6.375]
[1727768886024,6.70026865,156.9,156.86,6.375]
[1727768886725,6.3735,156.9,156.86,6.375]
[1727768887107,6.3735,156.9,156.85,28.46606339]
[1727768887425,6.374,156.89,156.86,1.27489402]
[1727768887632,6.374,156.89,156.85,15.9382]
[1727768889221,6.374,156.89,156.85,17.21309634]
[1727768889427,6.374,156.89,156.85,23.58849634]
[1727768891804,6.3735,156.9,156.85,23.58849634]
[1727768892007,6.3735,156.9,156.86,6.375]
[1727768892215,6.3735,156.9,156.87,1.27479019]
[1727768892619,6.3735,156.9,156.86,7.64979448]
[1727768893228,6.3735,156.9,156.86,6.375]
[1727768893814,6.3735,156.9,156.85,22.3135]
[1727768894019,6.3739,156.89,156.85,22.3135]
[1727768894221,6.70106865,156.88,156.82,21.9956]
[1727768894423,6.3753,156.86,156.82,22.3179]
[1727768894622,6.3753,156.86,156.82,15.9413]
[1727768897037,0.32676865,156.89,156.82,15.9413]
[1727768897339,6.3755,156.85,156.82,15.9413]
[1727768897637,35.9341,156.9,156.82,23.59304832]